[Event "Late-Titled-Tuesday-Blitz-April-23-2024"]
[Site "Chess.com"]
[Date "2024.04.23"]
[Round "4"]
[White "Licancabur"]
[Black "akanga001"]
[Result "1-0"]
[WhiteElo "2462"]
[BlackElo "2143"]
[TimeControl "180+1"]
[EndTime "14:39:53 PDT"]
[Termination "Licancabur won by resignation"]

1. f4 {[%clk 0:03:00.9]} 1... e6 {[%clk 0:02:56.3]} 2. Nf3 {[%clk 0:03:01.1]}
2... d5 {[%clk 0:02:55.4]} 3. d3 {[%clk 0:02:57.5]} 3... c5 {[%clk 0:02:54.7]}
4. g3 {[%clk 0:02:57.2]} 4... Nh6 {[%clk 0:02:53.7]} 5. Bg2 {[%clk 0:02:57]}
5... f6 {[%clk 0:02:53.3]} 6. O-O {[%clk 0:02:55.5]} 6... Nf7 {[%clk 0:02:52.9]}
7. e4 {[%clk 0:02:53.7]} 7... Nc6 {[%clk 0:02:48.9]} 8. Nc3 {[%clk 0:02:50.1]}
8... d4 {[%clk 0:02:43.8]} 9. Ne2 {[%clk 0:02:49.5]} 9... e5 {[%clk 0:02:44.3]}
10. Qe1 {[%clk 0:02:30.3]} 10... Bd6 {[%clk 0:02:39.3]} 11. Bd2 {[%clk
0:02:28.7]} 11... c4 {[%clk 0:02:34.8]} 12. dxc4 {[%clk 0:02:26.7]} 12... Be6
{[%clk 0:02:27.2]} 13. b3 {[%clk 0:02:24.6]} 13... a5 {[%clk 0:02:22.6]} 14. Nc1
{[%clk 0:02:23.6]} 14... Nb4 {[%clk 0:02:20.4]} 15. Qd1 {[%clk 0:02:18.3]} 15...
Qb6 {[%clk 0:02:09.3]} 16. Nd3 {[%clk 0:02:17.8]} 16... a4 {[%clk 0:01:50.3]}
17. Bxb4 {[%clk 0:01:57.5]} 17... Bxb4 {[%clk 0:01:48.5]} 18. Nxb4 {[%clk
0:01:32.7]} 18... Qxb4 {[%clk 0:01:46.9]} 19. Qd2 {[%clk 0:01:33.4]} 19... Qc5
{[%clk 0:01:41.9]} 20. Kh1 {[%clk 0:01:27.7]} 20... axb3 {[%clk 0:01:39.8]} 21.
axb3 {[%clk 0:01:27]} 21... O-O {[%clk 0:01:40.3]} 22. fxe5 {[%clk 0:01:15.7]}
22... fxe5 {[%clk 0:01:38.2]} 23. Ng5 {[%clk 0:01:14.4]} 23... Nxg5 {[%clk
0:01:32.1]} 24. Qxg5 {[%clk 0:01:12.2]} 24... Rxf1+ {[%clk 0:01:28.1]} 25. Rxf1
{[%clk 0:01:09.9]} 25... h6 {[%clk 0:01:23.6]} 26. Qg6 {[%clk 0:01:07.9]} 26...
Ra6 {[%clk 0:01:17.9]} 27. Qe8+ {[%clk 0:01:02.1]} 27... Kh7 {[%clk 0:01:17.3]}
28. Rf8 {[%clk 0:00:59.6]} 28... Ra1+ {[%clk 0:00:50.1]} 29. Bf1 {[%clk
0:00:59.4]} 29... Bg8 {[%clk 0:00:24.6]} 30. Rxg8 {[%clk 0:00:49.2]} 30... Rxf1+
{[%clk 0:00:18.7]} 31. Kg2 {[%clk 0:00:49.7]} 31... Rf2+ {[%clk 0:00:14]} 32.
Kxf2 {[%clk 0:00:46.5]} 32... d3+ {[%clk 0:00:14.9]} 33. Kg2 {[%clk 0:00:46.3]}
1-0

[Event "Late-Titled-Tuesday-Blitz-April-23-2024"]
[Site "Chess.com"]
[Date "2024.04.23"]
[Round "4"]
[White "Russian_berezka"]
[Black "titomagno_64"]
[Result "1-0"]
[WhiteElo "2635"]
[BlackElo "2314"]
[TimeControl "180+1"]
[EndTime "14:39:57 PDT"]
[Termination "Russian_berezka won on time"]

1. d4 {[%clk 0:03:00.9]} 1... Nf6 {[%clk 0:02:56.9]} 2. c4 {[%clk 0:03:01.4]}
2... g6 {[%clk 0:02:57.4]} 3. Nc3 {[%clk 0:03:01.2]} 3... d5 {[%clk 0:02:57.9]}
4. cxd5 {[%clk 0:03:01.4]} 4... Nxd5 {[%clk 0:02:58.8]} 5. e4 {[%clk 0:03:01.6]}
5... Nxc3 {[%clk 0:02:58.3]} 6. bxc3 {[%clk 0:03:01.8]} 6... Bg7 {[%clk
0:02:58.7]} 7. Bc4 {[%clk 0:02:57.5]} 7... c5 {[%clk 0:02:58.6]} 8. Ne2 {[%clk
0:02:58.1]} 8... Nc6 {[%clk 0:02:58.8]} 9. Be3 {[%clk 0:02:58.6]} 9... O-O
{[%clk 0:02:57.7]} 10. h4 {[%clk 0:02:59.1]} 10... h5 {[%clk 0:02:44.9]} 11. O-O
{[%clk 0:02:42.7]} 11... Bg4 {[%clk 0:02:36.8]} 12. f3 {[%clk 0:02:38.2]} 12...
Bd7 {[%clk 0:02:37]} 13. e5 {[%clk 0:02:16.6]} 13... Rc8 {[%clk 0:02:22.2]} 14.
Rc1 {[%clk 0:01:48.2]} 14... Na5 {[%clk 0:01:50.4]} 15. Bd3 {[%clk 0:01:42.5]}
15... Be6 {[%clk 0:01:35.7]} 16. f4 {[%clk 0:01:31.7]} 16... Nc4 {[%clk
0:01:15.5]} 17. Bf2 {[%clk 0:01:19.4]} 17... Nb2 {[%clk 0:01:12.3]} 18. Qd2
{[%clk 0:01:19.4]} 18... Nxd3 {[%clk 0:01:11.7]} 19. Qxd3 {[%clk 0:01:20.3]}
19... c4 {[%clk 0:01:04.3]} 20. Qe3 {[%clk 0:01:17.5]} 20... Bf5 {[%clk
0:01:01.1]} 21. Ng3 {[%clk 0:01:17.3]} 21... Bd3 {[%clk 0:01:01.4]} 22. Rfd1
{[%clk 0:01:11]} 22... e6 {[%clk 0:00:58.9]} 23. Rxd3 {[%clk 0:01:07.3]} 23...
cxd3 {[%clk 0:00:59.8]} 24. Qxd3 {[%clk 0:01:07.9]} 24... Qxh4 {[%clk
0:00:51.8]} 25. Ne4 {[%clk 0:00:53]} 25... Qxf4 {[%clk 0:00:45.2]} 26. Be3
{[%clk 0:00:53.3]} 26... Qg4 {[%clk 0:00:43.6]} 27. Rf1 {[%clk 0:00:47.4]} 27...
Rcd8 {[%clk 0:00:20.3]} 28. Rf4 {[%clk 0:00:45.7]} 28... Bxe5 {[%clk 0:00:05.3]}
29. Rxg4 {[%clk 0:00:44.7]} 29... hxg4 {[%clk 0:00:06.2]} 30. Bg5 {[%clk
0:00:40.3]} 30... Rd7 {[%clk 0:00:05.9]} 31. Bf6 {[%clk 0:00:39.8]} 31... Bf4
{[%clk 0:00:02.6]} 32. Qf1 {[%clk 0:00:30.5]} 1-0

[Event "Late-Titled-Tuesday-Blitz-April-23-2024"]
[Site "Chess.com"]
[Date "2024.04.23"]
[Round "4"]
[White "staz_staz"]
[Black "gorgeous1083"]
[Result "0-1"]
[WhiteElo "2285"]
[BlackElo "2092"]
[TimeControl "180+1"]
[EndTime "14:40:04 PDT"]
[Termination "gorgeous1083 won on time"]

1. d4 {[%clk 0:03:00.9]} 1... Nf6 {[%clk 0:02:59.4]} 2. Nf3 {[%clk 0:03:00.6]}
2... e6 {[%clk 0:02:59.9]} 3. c4 {[%clk 0:03:00.7]} 3... d5 {[%clk 0:03:00.2]}
4. Bg5 {[%clk 0:02:59.9]} 4... Be7 {[%clk 0:03:00.5]} 5. e3 {[%clk 0:03:00.1]}
5... O-O {[%clk 0:03:01.1]} 6. Nc3 {[%clk 0:03:00.3]} 6... c6 {[%clk 0:03:01.4]}
7. Bd3 {[%clk 0:02:59.9]} 7... Nbd7 {[%clk 0:03:01.7]} 8. Qc2 {[%clk 0:02:59.7]}
8... h6 {[%clk 0:03:01.8]} 9. h4 {[%clk 0:02:59.7]} 9... b6 {[%clk 0:02:51.8]}
10. Bxf6 {[%clk 0:02:57]} 10... Nxf6 {[%clk 0:02:51.2]} 11. g4 {[%clk
0:02:57.5]} 11... Nd7 {[%clk 0:02:43.3]} 12. g5 {[%clk 0:02:56.7]} 12... h5
{[%clk 0:02:40.9]} 13. g6 {[%clk 0:02:51.6]} 13... f5 {[%clk 0:02:38.1]} 14.
O-O-O {[%clk 0:02:47.5]} 14... Nf6 {[%clk 0:02:31]} 15. Ne5 {[%clk 0:02:43.7]}
15... Bb7 {[%clk 0:02:29.1]} 16. Rhg1 {[%clk 0:02:25.7]} 16... c5 {[%clk
0:02:28.6]} 17. cxd5 {[%clk 0:02:23.2]} 17... Nxd5 {[%clk 0:02:15.4]} 18. dxc5
{[%clk 0:02:17.9]} 18... Rc8 {[%clk 0:02:07.7]} 19. Kb1 {[%clk 0:01:51.4]} 19...
Rxc5 {[%clk 0:01:58.1]} 20. Qe2 {[%clk 0:01:11.1]} 20... Rxc3 {[%clk 0:01:53.6]}
21. Qxh5 {[%clk 0:01:07]} 21... Nf6 {[%clk 0:01:40.8]} 22. Qe2 {[%clk 0:00:48]}
22... Rxd3 {[%clk 0:01:40.6]} 23. Nxd3 {[%clk 0:00:42.1]} 23... Be4 {[%clk
0:01:34.7]} 24. f3 {[%clk 0:00:42.4]} 24... Bxd3+ {[%clk 0:01:33.1]} 25. Rxd3
{[%clk 0:00:43.3]} 25... Qb8 {[%clk 0:01:28]} 26. a3 {[%clk 0:00:33.2]} 26...
Rc8 {[%clk 0:01:24.8]} 27. Rd4 {[%clk 0:00:18.2]} 27... Qc7 {[%clk 0:01:21.3]}
28. Rgd1 {[%clk 0:00:15.2]} 28... Bc5 {[%clk 0:01:18.9]} 29. Rc4 {[%clk
0:00:13.7]} 29... Qe7 {[%clk 0:01:17.3]} 30. Rdc1 {[%clk 0:00:13.3]} 30... Rd8
{[%clk 0:01:16.5]} 31. h5 {[%clk 0:00:12.9]} 31... a5 {[%clk 0:01:13.6]} 32. h6
{[%clk 0:00:12.6]} 32... gxh6 {[%clk 0:01:13.7]} 33. Qh2 {[%clk 0:00:12.7]}
33... Kg7 {[%clk 0:01:12]} 34. Rh4 {[%clk 0:00:09.5]} 34... Bxe3 {[%clk
0:01:11.6]} 35. Re1 {[%clk 0:00:06.6]} 35... Bg5 {[%clk 0:01:10.6]} 36. Rc4
{[%clk 0:00:04.9]} 36... Kxg6 {[%clk 0:01:10.1]} 37. Ka1 {[%clk 0:00:05]} 37...
Rd7 {[%clk 0:01:08.4]} 38. Qe5 {[%clk 0:00:05.3]} 38... Qd6 {[%clk 0:01:07.7]}
39. Qe2 {[%clk 0:00:05.2]} 39... b5 {[%clk 0:00:59]} 40. Rc2 {[%clk 0:00:02.2]}
40... b4 {[%clk 0:00:58.9]} 41. a4 {[%clk 0:00:01.6]} 41... b3 {[%clk
0:00:58.8]} 42. Rc3 {[%clk 0:00:01.7]} 42... Qd2 {[%clk 0:00:54.7]} 0-1

[Event "Late-Titled-Tuesday-Blitz-April-23-2024"]
[Site "Chess.com"]
[Date "2024.04.23"]
[Round "4"]
[White "campochess"]
[Black "WoolworthsManly"]
[Result "1/2-1/2"]
[WhiteElo "2160"]
[BlackElo "2678"]
[TimeControl "180+1"]
[EndTime "14:40:07 PDT"]
[Termination "Game drawn by repetition"]

1. Nc3 {[%clk 0:02:59.6]} 1... d5 {[%clk 0:02:57.4]} 2. d4 {[%clk 0:02:59.6]}
2... Nf6 {[%clk 0:02:50.6]} 3. Bf4 {[%clk 0:02:59.3]} 3... c5 {[%clk 0:02:46.6]}
4. e3 {[%clk 0:02:58]} 4... cxd4 {[%clk 0:02:41.2]} 5. exd4 {[%clk 0:02:56.6]}
5... Nc6 {[%clk 0:02:42.1]} 6. Nf3 {[%clk 0:02:55.7]} 6... a6 {[%clk 0:02:33.1]}
7. Be2 {[%clk 0:02:54.5]} 7... Ne4 {[%clk 0:02:31.4]} 8. O-O {[%clk 0:02:53.1]}
8... Nxc3 {[%clk 0:02:31.3]} 9. bxc3 {[%clk 0:02:51.9]} 9... g6 {[%clk
0:02:31.1]} 10. c4 {[%clk 0:02:51.8]} 10... Be6 {[%clk 0:02:20.1]} 11. cxd5
{[%clk 0:02:50.2]} 11... Bxd5 {[%clk 0:02:20]} 12. c4 {[%clk 0:02:50.1]} 12...
Bxf3 {[%clk 0:02:15.7]} 13. Bxf3 {[%clk 0:02:49.5]} 13... Bg7 {[%clk 0:02:16.2]}
14. Rb1 {[%clk 0:02:43.8]} 14... Qd7 {[%clk 0:02:08.8]} 15. d5 {[%clk
0:02:42.6]} 15... Ne5 {[%clk 0:02:07.1]} 16. Re1 {[%clk 0:02:38.5]} 16... Nxf3+
{[%clk 0:02:05]} 17. Qxf3 {[%clk 0:02:38.5]} 17... O-O {[%clk 0:02:05]} 18. d6
{[%clk 0:02:29.9]} 18... exd6 {[%clk 0:01:59.2]} 19. Rxb7 {[%clk 0:02:27.9]}
19... Qd8 {[%clk 0:01:36.5]} 20. Qd5 {[%clk 0:02:21]} 20... Be5 {[%clk
0:01:23.6]} 21. Bxe5 {[%clk 0:02:17.6]} 21... dxe5 {[%clk 0:01:23.7]} 22. Rxe5
{[%clk 0:02:17.5]} 22... Qh4 {[%clk 0:01:13.8]} 23. g3 {[%clk 0:02:15]} 23...
Qg4 {[%clk 0:01:09.7]} 24. Ree7 {[%clk 0:02:13]} 24... Rad8 {[%clk 0:00:51.5]}
25. Red7 {[%clk 0:02:01.8]} 25... Rxd7 {[%clk 0:00:49.1]} 26. Rxd7 {[%clk
0:02:01.4]} 26... Qe6 {[%clk 0:00:22.2]} 27. Qxe6 {[%clk 0:01:47.8]} 27... fxe6
{[%clk 0:00:23.1]} 28. Rd6 {[%clk 0:01:47.9]} 28... Kf7 {[%clk 0:00:21.7]} 29.
Rxa6 {[%clk 0:01:47]} 29... Rc8 {[%clk 0:00:21.9]} 30. Ra7+ {[%clk 0:01:44.4]}
30... Kf6 {[%clk 0:00:22]} 31. Rxh7 {[%clk 0:01:43.5]} 31... Ra8 {[%clk
0:00:20.1]} 32. c5 {[%clk 0:01:37.3]} 32... Rxa2 {[%clk 0:00:20]} 33. c6 {[%clk
0:01:37.5]} 33... Rc2 {[%clk 0:00:19.8]} 34. c7 {[%clk 0:01:37.7]} 34... e5
{[%clk 0:00:19.5]} 35. Kg2 {[%clk 0:01:30.4]} 35... e4 {[%clk 0:00:19.3]} 36.
Kf1 {[%clk 0:01:29.7]} 36... Ke5 {[%clk 0:00:18.6]} 37. h4 {[%clk 0:01:28.5]}
37... e3 {[%clk 0:00:17.9]} 38. Re7+ {[%clk 0:01:26.4]} 38... Kf6 {[%clk
0:00:18]} 39. Rxe3 {[%clk 0:01:25]} 39... Rxc7 {[%clk 0:00:18.5]} 40. Kg2 {[%clk
0:01:24.5]} 40... Rc4 {[%clk 0:00:17.9]} 41. Kf3 {[%clk 0:01:24]} 41... Kf5
{[%clk 0:00:18]} 42. Ra3 {[%clk 0:01:22.7]} 42... Rc5 {[%clk 0:00:18.1]} 43. Ra4
{[%clk 0:01:20.9]} 43... Rc6 {[%clk 0:00:17.5]} 44. g4+ {[%clk 0:01:20.2]} 44...
Kf6 {[%clk 0:00:18]} 45. Kg3 {[%clk 0:01:17.9]} 45... Rc1 {[%clk 0:00:17.7]} 46.
f4 {[%clk 0:01:16.8]} 46... Rc3+ {[%clk 0:00:17]} 47. Kf2 {[%clk 0:01:16.8]}
47... Rh3 {[%clk 0:00:16.9]} 48. Ra6+ {[%clk 0:01:15.6]} 48... Kf7 {[%clk
0:00:16.5]} 49. Ra7+ {[%clk 0:01:03.5]} 49... Kg8 {[%clk 0:00:16.7]} 50. Ra8+
{[%clk 0:00:56.4]} 50... Kg7 {[%clk 0:00:16.8]} 51. Ra7+ {[%clk 0:00:55.7]}
51... Kg8 {[%clk 0:00:17.1]} 52. Ra8+ {[%clk 0:00:55.7]} 52... Kg7 {[%clk
0:00:17.5]} 53. Ra7+ {[%clk 0:00:55.4]} 53... Kg8 {[%clk 0:00:18]} 1/2-1/2

[Event "Late-Titled-Tuesday-Blitz-April-23-2024"]
[Site "Chess.com"]
[Date "2024.04.23"]
[Round "4"]
[White "AsterPhoenix"]
[Black "FlemingA"]
[Result "1-0"]
[WhiteElo "2652"]
[BlackElo "2439"]
[TimeControl "180+1"]
[EndTime "14:40:09 PDT"]
[Termination "AsterPhoenix won by checkmate"]

1. e4 {[%clk 0:01:36.4]} 1... g6 {[%clk 0:02:58]} 2. d4 {[%clk 0:01:36.1]} 2...
Bg7 {[%clk 0:02:57.4]} 3. Nc3 {[%clk 0:01:35.7]} 3... a6 {[%clk 0:02:57.2]} 4.
h4 {[%clk 0:01:35.1]} 4... h5 {[%clk 0:02:57.1]} 5. a4 {[%clk 0:01:32.9]} 5...
d6 {[%clk 0:02:57.6]} 6. Be3 {[%clk 0:01:31.3]} 6... Nf6 {[%clk 0:02:57.5]} 7.
f3 {[%clk 0:01:31.5]} 7... c6 {[%clk 0:02:51.2]} 8. Nh3 {[%clk 0:01:28.7]} 8...
Bxh3 {[%clk 0:02:51.1]} 9. Rxh3 {[%clk 0:01:28.5]} 9... d5 {[%clk 0:02:50.9]}
10. e5 {[%clk 0:01:27.8]} 10... Nfd7 {[%clk 0:02:51.1]} 11. Bg5 {[%clk
0:01:21.9]} 11... Qb6 {[%clk 0:02:41.7]} 12. a5 {[%clk 0:00:53.3]} 12... Qxb2
{[%clk 0:02:19.8]} 13. Bd2 {[%clk 0:00:43.6]} 13... O-O {[%clk 0:01:51.4]} 14.
f4 {[%clk 0:00:43.3]} 14... e6 {[%clk 0:01:24.9]} 15. Rb1 {[%clk 0:00:38.5]}
15... Qa3 {[%clk 0:01:17.5]} 16. Nxd5 {[%clk 0:00:38.1]} 16... Qa4 {[%clk
0:01:11]} 17. Ne7+ {[%clk 0:00:24]} 17... Kh7 {[%clk 0:01:11.2]} 18. Bd3 {[%clk
0:00:19.8]} 18... Qxd4 {[%clk 0:01:03.9]} 19. Qxh5+ {[%clk 0:00:18.9]} 19... Bh6
{[%clk 0:01:02.8]} 20. Bxg6+ {[%clk 0:00:10.5]} 20... Kg7 {[%clk 0:00:53.7]} 21.
Bd3 {[%clk 0:00:07.3]} 21... Rh8 {[%clk 0:00:33.5]} 22. Rg3+ {[%clk 0:00:07]}
22... Kf8 {[%clk 0:00:33.9]} 23. Nc8 {[%clk 0:00:05.2]} 23... Bg7 {[%clk
0:00:11.6]} 24. Qg5 {[%clk 0:00:04.9]} 24... Qg1+ {[%clk 0:00:03.8]} 25. Bf1
{[%clk 0:00:04.1]} 25... Nxe5 {[%clk 0:00:01.6]} 26. Qd8# {[%clk 0:00:04.1]} 1-0

[Event "Late-Titled-Tuesday-Blitz-April-23-2024"]
[Site "Chess.com"]
[Date "2024.04.23"]
[Round "4"]
[White "protectiago"]
[Black "sassassasss"]
[Result "0-1"]
[WhiteElo "2068"]
[BlackElo "2450"]
[TimeControl "180+1"]
[EndTime "14:40:11 PDT"]
[Termination "sassassasss won on time"]

1. d4 {[%clk 0:02:59.7]} 1... Nc6 {[%clk 0:03:00]} 2. g3 {[%clk 0:02:56.3]} 2...
e5 {[%clk 0:02:58.9]} 3. d5 {[%clk 0:02:55.5]} 3... Nce7 {[%clk 0:02:59.4]} 4.
Bg2 {[%clk 0:02:55.3]} 4... Ng6 {[%clk 0:02:59.6]} 5. e4 {[%clk 0:02:47.1]} 5...
Bc5 {[%clk 0:02:59.5]} 6. Ne2 {[%clk 0:02:34.4]} 6... Nf6 {[%clk 0:02:58.7]} 7.
h4 {[%clk 0:02:32.8]} 7... h6 {[%clk 0:02:58.5]} 8. h5 {[%clk 0:01:56.4]} 8...
Nf8 {[%clk 0:02:57.8]} 9. Be3 {[%clk 0:01:14.6]} 9... Bxe3 {[%clk 0:02:54.9]}
10. fxe3 {[%clk 0:01:14.7]} 10... d6 {[%clk 0:02:55.8]} 11. Nbc3 {[%clk
0:01:09.9]} 11... Bg4 {[%clk 0:02:54.9]} 12. Qd3 {[%clk 0:01:01.6]} 12... a6
{[%clk 0:02:52.6]} 13. O-O-O {[%clk 0:00:53.3]} 13... Bxh5 {[%clk 0:02:50.9]}
14. Rdf1 {[%clk 0:00:49.5]} 14... Bg4 {[%clk 0:02:50.6]} 15. Rf2 {[%clk
0:00:37.1]} 15... N8d7 {[%clk 0:02:49.8]} 16. Rhf1 {[%clk 0:00:32.8]} 16... Qe7
{[%clk 0:02:48.4]} 17. Kb1 {[%clk 0:00:28.1]} 17... O-O-O {[%clk 0:02:28.8]} 18.
Nc1 {[%clk 0:00:19.7]} 18... Nc5 {[%clk 0:02:27.1]} 19. Qc4 {[%clk 0:00:19.7]}
19... Kb8 {[%clk 0:02:22.6]} 20. Nd3 {[%clk 0:00:19.5]} 20... h5 {[%clk
0:02:08.8]} 21. b4 {[%clk 0:00:16.7]} 21... Nxd3 {[%clk 0:02:07]} 22. cxd3
{[%clk 0:00:16.8]} 22... h4 {[%clk 0:02:03]} 23. gxh4 {[%clk 0:00:16.7]} 23...
Rxh4 {[%clk 0:02:02.7]} 24. Rc2 {[%clk 0:00:16.4]} 24... Bd7 {[%clk 0:01:52.3]}
25. b5 {[%clk 0:00:15.4]} 25... axb5 {[%clk 0:01:49.1]} 26. Nxb5 {[%clk
0:00:15]} 26... Bxb5 {[%clk 0:01:49]} 27. Qxb5 {[%clk 0:00:14.6]} 27... Qd7
{[%clk 0:01:36.3]} 28. Qa5 {[%clk 0:00:13]} 28... b6 {[%clk 0:01:32.8]} 29. Rb2
{[%clk 0:00:12.3]} 29... Qc8 {[%clk 0:01:31.2]} 30. Rc1 {[%clk 0:00:10.7]} 30...
Qb7 {[%clk 0:01:30.8]} 31. Qa4 {[%clk 0:00:09.8]} 31... Nd7 {[%clk 0:01:26.7]}
32. d4 {[%clk 0:00:09.1]} 32... f6 {[%clk 0:01:23.1]} 33. Bf1 {[%clk 0:00:08.8]}
33... Rxe4 {[%clk 0:01:18.1]} 34. Bb5 {[%clk 0:00:07.1]} 34... Nc5 {[%clk
0:01:04.3]} 35. Qc2 {[%clk 0:00:06.1]} 35... exd4 {[%clk 0:01:01.9]} 36. exd4
{[%clk 0:00:05.5]} 36... Rxd4 {[%clk 0:01:01.7]} 37. a4 {[%clk 0:00:05]} 37...
Qxd5 {[%clk 0:00:57.5]} 38. Bf1 {[%clk 0:00:03.8]} 38... Rxa4 {[%clk 0:00:50.8]}
39. Bg2 {[%clk 0:00:03.7]} 39... Qd3 {[%clk 0:00:47.9]} 40. Qxd3 {[%clk
0:00:02.8]} 40... Nxd3 {[%clk 0:00:47.9]} 0-1

[Event "Late-Titled-Tuesday-Blitz-April-23-2024"]
[Site "Chess.com"]
[Date "2024.04.23"]
[Round "4"]
[White "DeArron_Fox"]
[Black "osielchesslover2011"]
[Result "1-0"]
[WhiteElo "2491"]
[BlackElo "2229"]
[TimeControl "180+1"]
[EndTime "14:40:13 PDT"]
[Termination "DeArron_Fox won on time"]

1. d4 {[%clk 0:03:00.9]} 1... Nf6 {[%clk 0:02:59.1]} 2. c4 {[%clk 0:02:58.4]}
2... g6 {[%clk 0:02:59.4]} 3. Nc3 {[%clk 0:02:59]} 3... Bg7 {[%clk 0:03:00.3]}
4. e4 {[%clk 0:02:59.5]} 4... d6 {[%clk 0:03:01.2]} 5. f3 {[%clk 0:03:00.1]}
5... O-O {[%clk 0:03:00.3]} 6. Be3 {[%clk 0:03:00.7]} 6... e5 {[%clk 0:03:00.2]}
7. Nge2 {[%clk 0:03:01]} 7... a5 {[%clk 0:02:56.6]} 8. Qd2 {[%clk 0:03:01.4]}
8... Nbd7 {[%clk 0:02:53.1]} 9. O-O-O {[%clk 0:02:57.7]} 9... c6 {[%clk
0:01:43.1]} 10. h4 {[%clk 0:02:54.6]} 10... Qc7 {[%clk 0:01:40]} 11. Bh6 {[%clk
0:02:53.1]} 11... a4 {[%clk 0:01:31.8]} 12. h5 {[%clk 0:02:51.7]} 12... a3
{[%clk 0:01:30.8]} 13. b3 {[%clk 0:02:49.4]} 13... exd4 {[%clk 0:01:28.9]} 14.
Nxd4 {[%clk 0:02:46.4]} 14... Nc5 {[%clk 0:01:27.3]} 15. g4 {[%clk 0:02:29.7]}
15... Bxg4 {[%clk 0:01:08.8]} 16. Bxg7 {[%clk 0:02:28.2]} 16... Kxg7 {[%clk
0:01:05.8]} 17. hxg6 {[%clk 0:02:26.6]} 17... fxg6 {[%clk 0:01:04.4]} 18. fxg4
{[%clk 0:02:22.2]} 18... Rae8 {[%clk 0:00:57]} 19. Qh6+ {[%clk 0:01:42.3]} 19...
Kg8 {[%clk 0:00:56.3]} 20. Bh3 {[%clk 0:01:31.3]} 20... Nfxe4 {[%clk 0:00:50.7]}
21. Nxe4 {[%clk 0:01:27]} 21... Nxe4 {[%clk 0:00:51.6]} 22. g5 {[%clk
0:01:23.5]} 22... Nc5 {[%clk 0:00:11.8]} 23. b4 {[%clk 0:01:14.7]} 23... Na4
{[%clk 0:00:05.1]} 24. Be6+ {[%clk 0:01:07.1]} 24... Kh8 {[%clk 0:00:02.1]} 25.
Qxg6 {[%clk 0:00:54.3]} 25... d5 {[%clk 0:00:02.3]} 26. Nf5 {[%clk 0:00:07]} 1-0

[Event "Late-Titled-Tuesday-Blitz-April-23-2024"]
[Site "Chess.com"]
[Date "2024.04.23"]
[Round "4"]
[White "wadsy27"]
[Black "Narek_Ghimoyan"]
[Result "1-0"]
[WhiteElo "2648"]
[BlackElo "2438"]
[TimeControl "180+1"]
[EndTime "14:40:14 PDT"]
[Termination "wadsy27 won by resignation"]

1. c4 {[%clk 0:02:57.2]} 1... e6 {[%clk 0:02:59.7]} 2. g3 {[%clk 0:02:55.3]}
2... d5 {[%clk 0:02:58.1]} 3. Bg2 {[%clk 0:02:45.6]} 3... Nf6 {[%clk 0:02:57.8]}
4. Nf3 {[%clk 0:02:44]} 4... Be7 {[%clk 0:02:58]} 5. O-O {[%clk 0:02:39.8]} 5...
O-O {[%clk 0:02:58.5]} 6. b3 {[%clk 0:02:36]} 6... b6 {[%clk 0:02:55.9]} 7. Nc3
{[%clk 0:02:32.8]} 7... Bb7 {[%clk 0:02:55.2]} 8. cxd5 {[%clk 0:02:30.6]} 8...
exd5 {[%clk 0:02:54.6]} 9. e3 {[%clk 0:02:30.3]} 9... a6 {[%clk 0:02:54.4]} 10.
Bb2 {[%clk 0:02:30.2]} 10... Nbd7 {[%clk 0:02:54.3]} 11. Rc1 {[%clk 0:02:27.7]}
11... c5 {[%clk 0:02:54.1]} 12. d4 {[%clk 0:02:26.8]} 12... Rc8 {[%clk
0:02:46.8]} 13. Re1 {[%clk 0:02:23.7]} 13... c4 {[%clk 0:02:45.7]} 14. bxc4
{[%clk 0:02:20.8]} 14... Rxc4 {[%clk 0:02:43.1]} 15. Ne5 {[%clk 0:02:17.9]}
15... Rc8 {[%clk 0:02:35.3]} 16. Bh3 {[%clk 0:02:08.7]} 16... Rc7 {[%clk
0:02:21.2]} 17. Qb3 {[%clk 0:02:02.2]} 17... Nxe5 {[%clk 0:02:09.2]} 18. dxe5
{[%clk 0:02:00.7]} 18... Ne4 {[%clk 0:02:07.9]} 19. Nxe4 {[%clk 0:01:46.5]}
19... dxe4 {[%clk 0:02:04.3]} 20. Rxc7 {[%clk 0:01:38.3]} 20... Qxc7 {[%clk
0:02:02.5]} 21. Rc1 {[%clk 0:01:38.3]} 21... Bc5 {[%clk 0:02:00.5]} 22. Bd4
{[%clk 0:01:37.1]} 22... Qe7 {[%clk 0:01:56.7]} 23. Bxc5 {[%clk 0:01:22.8]}
23... bxc5 {[%clk 0:01:57.6]} 24. e6 {[%clk 0:01:23.2]} 24... fxe6 {[%clk
0:01:55.7]} 25. Qxe6+ {[%clk 0:01:20.9]} 25... Qxe6 {[%clk 0:01:53.6]} 26. Bxe6+
{[%clk 0:01:20.4]} 26... Kh8 {[%clk 0:01:53.4]} 27. Rxc5 {[%clk 0:01:20.3]}
27... g6 {[%clk 0:01:50.8]} 28. Bd5 {[%clk 0:01:18.9]} 28... Bxd5 {[%clk
0:01:44.5]} 29. Rxd5 {[%clk 0:01:19.8]} 29... Rb8 {[%clk 0:01:43.8]} 30. Rd6
{[%clk 0:01:15.3]} 30... a5 {[%clk 0:01:34.1]} 31. Rd5 {[%clk 0:01:08.9]} 31...
a4 {[%clk 0:01:18.7]} 32. Rd4 {[%clk 0:01:05.7]} 32... a3 {[%clk 0:01:16.8]} 33.
Ra4 {[%clk 0:01:04.8]} 33... Kg7 {[%clk 0:01:17]} 34. Rxa3 {[%clk 0:01:03.7]}
34... Kf6 {[%clk 0:01:17.6]} 35. Ra7 {[%clk 0:01:02.8]} 35... h5 {[%clk
0:01:15.2]} 36. Kg2 {[%clk 0:01:02.1]} 36... Kf5 {[%clk 0:01:10.7]} 37. h3
{[%clk 0:01:00.6]} 37... Rb2 {[%clk 0:01:07.2]} 38. Ra5+ {[%clk 0:00:59]} 38...
Kf6 {[%clk 0:01:06.6]} 39. g4 {[%clk 0:00:59.2]} 39... h4 {[%clk 0:01:06.1]} 40.
Ra8 {[%clk 0:00:52.9]} 40... Rd2 {[%clk 0:01:03.1]} 41. a4 {[%clk 0:00:49.8]}
41... Ra2 {[%clk 0:01:02.6]} 42. a5 {[%clk 0:00:49.1]} 42... g5 {[%clk
0:01:01.5]} 43. a6 {[%clk 0:00:48.3]} 43... Kg7 {[%clk 0:00:58.6]} 44. Kf1
{[%clk 0:00:45]} 44... Ra1+ {[%clk 0:00:57.7]} 45. Ke2 {[%clk 0:00:44]} 45...
Ra2+ {[%clk 0:00:58.3]} 46. Ke1 {[%clk 0:00:43.9]} 46... Ra1+ {[%clk 0:00:58.4]}
47. Kd2 {[%clk 0:00:43.2]} 47... Ra2+ {[%clk 0:00:58.7]} 48. Kc3 {[%clk
0:00:43.6]} 48... Rxf2 {[%clk 0:00:59.1]} 49. a7 {[%clk 0:00:44]} 49... Ra2
{[%clk 0:00:58.6]} 50. Kd4 {[%clk 0:00:43.5]} 50... Ra4+ {[%clk 0:00:57.4]} 51.
Ke5 {[%clk 0:00:43.5]} 51... Ra5+ {[%clk 0:00:45.6]} 52. Kxe4 {[%clk 0:00:43]}
52... Kh7 {[%clk 0:00:46.5]} 53. Kd4 {[%clk 0:00:42.4]} 53... Ra4+ {[%clk
0:00:46]} 54. Kc3 {[%clk 0:00:39.6]} 54... Ra3+ {[%clk 0:00:45.5]} 55. Kb4
{[%clk 0:00:40]} 55... Rxe3 {[%clk 0:00:41.2]} 56. Rb8 {[%clk 0:00:38.5]} 1-0